Workbook

Sheet BreakEven Data
B2: BREAK-EVEN ANALYSIS
C5: Fixed Costs | O5: Variable Unit Costs
C6: Costs required to produce the first unit of a product. | O6: Costs that vary directly with the production of one additional unit.
C7: Definition | K7: Cost | O7: Definiton | Y7: Cost
K8: 500.00 | Y8: 2.50
C19: Unit Selling Price: | K19: 5.00
C20: The amount of money charged to the customer for each unit of a product or service.
C22: Expected Unit Sales: | K22: 310
C23: Number of units of the product projected to be sold over a specific period of time.
C25: Break-Even Units: | K25: =IF(ISERROR(BE),"",BE) -> 200.00

Sheet BreakEven Analysis
B2: BREAK-EVEN ANALYSIS
C4: Total Fixed Costs: | I4: =SUM('BreakEven Data'!K8:M17) -> 500.00
C5: Total Variable Unit Costs: | I5: =SUM('BreakEven Data'!Y8:AA17) -> 2.50
C6: Expected Unit Sales: | I6: ='BreakEven Data'!K22 -> 310
C7: Price per Unit: | I7: ='BreakEven Data'!K19 -> 5.00
C9: Break Even Units: | I9: =FCost/(Price-VCost) -> 200.00
C11: =Calculations!O4 -> You will be making profit after 200,,000 units.
C16: Units | F16: Fixed Cost | J16: Variable Cost | N16: Total Cost | R16: Revenue | W16: Profit
C17: =Increment -> 100 | F17: =IF(C17="","",FCost) -> 500.00 | J17: =IF(C17="","",C17*VCost) -> 250.00 | N17: =IF(C17="","",F17+J17) -> 750.00 | R17: =IF(C17="","",C17*Price) -> 500.00 | W17: =IF(C17="","",R17-N17) -> -250.00
C18: =IF(OR(C17="",C17=Sales),"",IF(Increment+C17<=Sales,C17+Increment,Sales)) -> 200 | F18: 500.00 | J18: 500.00 | N18: =IF(C18="","",F18+J18) -> 1,000.00 | R18: 1,000.00 | W18: =IF(C18="","",R18-N18) -> 0.00
C19: 300 | F19: 500.00 | J19: 750.00 | N19: 1,250.00 | R19: 1,500.00 | W19: 250.00
C20: 310 | F20: 500.00 | J20: 775.00 | N20: 1,275.00 | R20: 1,550.00 | W20: 275.00

Sheet Readme
D3: Follow the steps to enable your online Break-Even Analyzer.
C4: >> | D4: Your Break-Even Analyzer is ready to use. Following steps are for online use.
C5: 1) | D5: Visit the site below:
D6: http://www.spreadsheetweb.com/getting_started.htm
D7: You will only need the username and password to create your online Break-Even Analyzer.
C8: 2) | D8: Visit the site below:
D9: https://www4.spreadsheetweb.com/SpreadsheetWEB//
D10: Login to page with your new account information.
C11: 3) | D11: Click "Add Web Application" to upload this file. Your online Break-Even Analyzer will be created automatically.
D12: You can simply use the Break-Even Analyzer from that link or place it on your website.
C13: >> | D13: Your online Break-Even Analyzer will look like:
D14: https://www4.spreadsheetweb.com/SpreadSheetWEB/Output.aspx?ApplicationId=53555cb2-d802-496b-8fd2-61526d285124
C15: >> | D15: In order to see more online applications created with PSW you can check the link below:
D16: http://www.spreadsheetweb.com/demos.htm
D19: Copyright (c) 2009 Pagos, Inc., http://www.pagos.com/

Sheet Calculations
J2: Fixed Cost | K2: Variable Cost | L2: Total Cost | M2: Revenue
C3: 1 | D3: 1 | F3: =VLOOKUP(Sales,L_Increment,2,TRUE) -> 100 | H3: =Increment -> 100 | I3: =H3 -> 100 | J3: =FCost -> 500 | K3: =H3*VCost -> 250 | L3: =J3+K3 -> 750 | M3: =H3*Price -> 500 | O3: =BE>Sales -> FALSE
C4: 31 | D4: 10 | H4: =Increment+H3 -> 200 | I4: =H4 -> 200 | J4: 500 | K4: 500 | L4: =J4+K4 -> 1000 | M4: 1000 | O4: =IF(O3,"You cannot compansate your costs and make profit.","You will be making profit after "&TEXT(BE,"###,###,##0.00")&" units.") -> You will be making profit after 200,,000 units.
C5: 301 | D5: 100 | H5: 300 | I5: 300 | J5: 500 | K5: 750 | L5: 1250 | M5: 1500
C6: 3001 | D6: 1000 | H6: 400 | I6: 400 | J6: 500 | K6: 1000 | L6: 1500 | M6: 2000
C7: 30001 | D7: 10000 | H7: 500 | I7: 500 | J7: 500 | K7: 1250 | L7: 1750 | M7: 2500
C8: 300001 | D8: 100000 | H8: 600 | I8: 600 | J8: 500 | K8: 1500 | L8: 2000 | M8: 3000
C9: 3000001 | D9: 1000000 | H9: 700 | I9: 700 | J9: 500 | K9: 1750 | L9: 2250 | M9: 3500
C10: 30000001 | D10: 10000000 | H10: 800 | I10: 800 | J10: 500 | K10: 2000 | L10: 2500 | M10: 4000
C11: 300000001 | D11: 100000000 | H11: 900 | I11: 900 | J11: 500 | K11: 2250 | L11: 2750 | M11: 4500
H12: 1,000 | I12: 1,000 | J12: 500 | K12: 2500 | L12: 3000 | M12: 5000
H13: 1,100 | I13: 1,100 | J13: 500 | K13: 2750 | L13: 3250 | M13: 5500
H14: 1,200 | I14: 1,200 | J14: 500 | K14: 3000 | L14: 3500 | M14: 6000
H15: 1,300 | I15: 1,300 | J15: 500 | K15: 3250 | L15: 3750 | M15: 6500
H16: 1,400 | I16: 1,400 | J16: 500 | K16: 3500 | L16: 4000 | M16: 7000
H17: 1,500 | I17: 1,500 | J17: 500 | K17: 3750 | L17: 4250 | M17: 7500
H18: 1,600 | I18: 1,600 | J18: 500 | K18: 4000 | L18: 4500 | M18: 8000
H19: 1,700 | I19: 1,700 | J19: 500 | K19: 4250 | L19: 4750 | M19: 8500
H20: 1,800 | I20: 1,800 | J20: 500 | K20: 4500 | L20: 5000 | M20: 9000
H21: 1,900 | I21: 1,900 | J21: 500 | K21: 4750 | L21: 5250 | M21: 9500
H22: 2,000 | I22: 2,000 | J22: 500 | K22: 5000 | L22: 5500 | M22: 10000
H23: 2,100 | I23: 2,100 | J23: 500 | K23: 5250 | L23: 5750 | M23: 10500
H24: 2,200 | I24: 2,200 | J24: 500 | K24: 5500 | L24: 6000 | M24: 11000
H25: 2,300 | I25: 2,300 | J25: 500 | K25: 5750 | L25: 6250 | M25: 11500
H26: 2,400 | I26: 2,400 | J26: 500 | K26: 6000 | L26: 6500 | M26: 12000
H27: 2,500 | I27: 2,500 | J27: 500 | K27: 6250 | L27: 6750 | M27: 12500
H28: 2,600 | I28: 2,600 | J28: 500 | K28: 6500 | L28: 7000 | M28: 13000
H29: 2,700 | I29: 2,700 | J29: 500 | K29: 6750 | L29: 7250 | M29: 13500
H30: 2,800 | I30: 2,800 | J30: 500 | K30: 7000 | L30: 7500 | M30: 14000
H31: 2,900 | I31: 2,900 | J31: 500 | K31: 7250 | L31: 7750 | M31: 14500
H32: 3,000 | I32: 3,000 | J32: 500 | K32: 7500 | L32: 8000 | M32: 15000
H33: 3,100 | I33: 3,100 | J33: 500 | K33: 7750 | L33: =J33+K33 -> 8250 | M33: =Price*H33 -> 15500

Sheet PSW_Sheet (hidden)
M2: d%22%22+Height%3d%2215.75%22+Align%3d%22Left%22+CellHasFormula%3d%22False%22+FontName%3d%22Calibri%22+WrapText%3d%22False%22+FontSize%3d%2211%22+X%3d%2215%22+Y%3d%2249%22+%2f%3e%0d%0a++++++%3cTD+Style%3d%22Class718%22+Merge%3d%22False%22+RowSpan%3d%22%22+ColSpan%3d%22%22+Format%3d%22General%22+Width%3d%2224.75%22+Text%3d%22%22+Height%3d%2215.75%22+Align%3d%22Left%22+CellHasFormula%3d%22False%22+FontName%3d%22Calibri%22+WrapText%3d%22False%22+FontSize%3d%2211%22+X%3d%2216%22+Y%3d%2249%22+%2f%3e%0d%0a++++++%3cTD+Style%3d%22Class718%22+Merge%3d%22False%22+RowSpan%3d%22%22+ColSpan%3d%22%22+Format%3d%22General%22+Width%3d%2224.75%22+Text%3d%22%22+Height%3d%2215.75%22+Align%3d%22Left%22+CellHasFormula%3d%22False%22+FontName%3d%22Calibri%22+WrapText%3d%22False%22+FontSize%3d%2211%22+X%3d%2217%22+Y%3d%2249%22+%2f%3e%0d%0a++++++%3cTD+Style%3d%22Class718%22+Merge%3d%22False%22+RowSpan%3d%22%22+ColSpan%3d%22%22+Format%3d%22General%22+Width%3d%2224.75%22+Text%3d%22%22+Height%3d%2215.75%22+Align%3d%22Left%22+CellHasFormula%3d%22False%22+FontName%3d%22Calibri%22+WrapText%3d%22False%22+FontSize%3d%2211%22+X%3d%2218%22+Y%3d%2249%22+%2f%3e%0d%0a++++++%3cTD+Style%3d%22Class718%22+Merge%3d%22False%22+RowSpan%3d%22%22+ColSpan%3d%22%22+Format%3d%22General%22+Width%3d%2224.75%22+Text%3d%22%22+Height%3d%2215.75%22+Align%3d%22Left%22+CellHasFormula%3d%22False%22+FontName%3d%22Calibri%22+WrapText%3d%22False%22+FontSize%3d%2211%22+X%3d%2219%22+Y%3d%2249%22+%2f%3e%0d%0a++++++%3cTD+Style%3d%22Class718%22+Merge%3d%22False%22+RowSpan%3d%22%22+ColSpan%3d%22%22+Format%3d%22General%22+Width%3d%2224.75%22+Text%3d%22%22+Height%3d%2215.75%22+Align%3d%22Left%22+CellHasFormula%3d%22False%22+FontName%3d%22Calibri%22+WrapText%3d%22False%22+FontSize%3d%2211%22+X%3d%2220%22+Y%3d%2249%22+%2f%3e%0d%0a++++++%3cTD+Style%3d%22Class718%22+Merge%3d%22False%22+RowSpan%3d%22%22+ColSpan%3d%22%22+Format%3d%22General%22+Width%3d%2224.75%22+Text%3d%22%22+Height%3d%2215.75%22+Align%3d%22Left%22+CellHasFormula%3d%22False%22+FontName%3d%22Calibri%22+WrapText%3d%22False%22+FontSize%3d%2211%22+X%3d%2221%22+Y%3d%2249%22+%2f%3e%0d%0a++++++%3cTD+Style%3d%22Class718%22+Merge%3d%22False%22+RowSpan%3d%22%22+ColSpan%3d%22%22+Format%3d%22General%22+Width%3d%2224.75%22+Text%3d%22%22+Height%3d%2215.75%22+Align%3d%22Left%22+CellHasFormula%3d%22False%22+FontName%3d%22Calibri%22+WrapText%3d%22False%22+FontSize%3d%2211%22+X%3d%2222%22+Y%3d%2249%22+%2f%3e%0d%0a++++++%3cTD+Style%3d%22Class718%22+Merge%3d%22False%22+RowSpan%3d%22%22+ColSpan%3d%22%22+Format%3d%22General%22+Width%3d%2224.75%22+Text%3d%22%22+Height%3d%2215.75%22+Align%3d%22Left%22+CellHasFormula%3d%22False%22+FontName%3d%22Calibri%22+WrapText%3d%22False%22+FontSize%3d%2211%22+X%3d%2223%22+Y%3d%2249%22+%2f%3e%0d%0a++++++%3cTD+Style%3d%22Class718%22+Merge%3d%22False%22+RowSpan%3d%22%22+ColSpan%3d%22%22+Format%3d%22General%22+Width%3d%2224.75%22+Text%3d%22%22+Height%3d%2215.75%22+Align%3d%22Left%22+CellHasFormula%3d%22False%22+FontName%3d%22Calibri%22+WrapText%3d%22False%22+FontSize%3d%2211%22+X%3d%2224%22+Y%3d%2249%22+%2f%3e%0d%0a++++++%3cTD+Style%3d%22Class718%22+Merge%3d%22False%22+RowSpan%3d%22%22+ColSpan%3d%22%22+Format%3d%22General%22+Width%3d%2224.75%22+Text%3d%22%22+Height%3d%2215.75%22+Align%3d%22Left%22+CellHasFormula%3d%22False%22+FontName%3d%22Calibri%22+WrapText%3d%22False%22+FontSize%3d%2211%22+X%3d%2225%22+Y%3d%2249%22+%2f%3e%0d%0a++++++%3cTD+Style%3d%22Class718%22+Merge%3d%22False%22+RowSpan%3d%22%22+ColSpan%3d%22%22+Format%3d%22General%22+Width%3d%2224.75%22+Text%3d%22%22+Height%3d%2215.75%22+Align%3d%22Left%22+CellHasFormula%3d%22False%22+FontName%3d%22Calibri%22+WrapText%3d%22False%22+FontSize%3d%2211%22+X%3d%2226%22+Y%3d%2249%22+%2f%3e%0d%0a++++++%3cTD+Style%3d%22Class718%22+Merge%3d%22False%22+RowSpan%3d%22%22+ColSpan%3d%22%22+Format%3d%22General%22+Width%3d%2224.75%22+Text%3d%22%22+Height%3d%2215.75%22+Align%3d%22Left%22+CellHasFormula%3d%22False%22+FontName%3d%22Calibri%22+WrapText%3d%22False%22+FontSize%3d%2211%22+X%3d%2227%22+Y%3d%2249%22+%2f%3e%0d%0a++++++%3cTD+Style%3d%22Class732%22+Merge%3d%22False%22+RowSpan%3d%22%22+ColSpan%3d%22%22+Format%3d%22General%22+Width%3d%2224.75%22+Text%3d%22%22+Height%3d%2215.75%22+Align%3d%22Left%22+CellHasFormula%3d%22False%22+FontName%3d%22Calibri%22+WrapText%3d%22False%22+FontSize%3d%2211%22+X%3d%2228%22+Y%3d%2249%22+%2f%3e%0d%0a++++++%3cTD+Style%3d%22Class662%22+Merge%3d%22False%22+RowSpan%3d%22%22+ColSpan%3d%22%22+Format%3d%22General%22+Width%3d%2224.75%22+Text%3d%22%22+Height%3d%2215.75%22+Align%3d%22Left%22+CellHasFormula%3d%22False%22+FontName%3d%22Calibri%22+WrapText%3d%22False%22+FontSize%3d%2211%22+X%3d%2229%22+Y%3d%2249%22+%2f%3e%0d%0a++++%3c%2fTR%3e%0d%0a++++%3cTR%3e%0d%0a++++++%3cTD+Style%3d%22Class658%22+Merge%3d%22False%22+RowSpan%3d%22%22+ColSpan%3d%22%22+Format%3d%22General%22+Width%3d%2224.75%22+Text%3d%22%22+Height%3d%2215.75%22+Align%3d%22Left%22+CellHasFormula%3d%22False%22+FontName%3d%22Calibri%22+WrapText%3d%22False%22+FontSize%3d%2211%22+X%3d%221%22+Y%3d%2250%22+%2f%3e%0d%0a++++++%3cTD+Style%3d%22Class693%22+Merge%3d%22False%22+RowSpan%3d%22%22+ColSpan%3d%22%22+Format%3d%22General%22+Width%3d%2224.75%22+Text%3d%22%22+Height%3d%2215.75%22+Align%3d%22Left%22+CellHasFormula%3d%22False%22+FontName%3d%22Calibri%22+WrapText%3d%22False%22+FontSize%3d%2211%22+X%3d%222%22+Y%3d%2250%22+%2f%3e%0d%0a++++++%3cTD+Style%3d%22Class693%22+Merge%3d%22False%22+RowSpan%3d%22%22+ColSpan%3d%22%22+Format%3d%22General%22+Width%3d%2224.75%22+Text%3d%22%22+Height%3d%2215.75%22+Align%3d%22Left%22+CellHasFormula%3d%22False%22+FontName%3d%22Calibri%22+WrapText%3d%22False%22+FontSize%3d%2211%22+X%3d%223%22+Y%3d%2250%22+%2f%3e%0d%0a++++++%3cTD+Style%3d%22Class693%22+Merge%3d%22False%22+RowSpan%3d%22%22+ColSpan%3d%22%22+Format%3d%22General%22+Width%3d%2224.75%22+Text%3d%22%22+Height%3d%2215.75%22+Align%3d%22Left%22+CellHasFormula%3d%22False%22+FontName%3d%22Calibri%22+WrapText%3d%22False%22+FontSize%3d%2211%22+X%3d%224%22+Y%3d%2250%22+%2f%3e%0d%0a++++++%3cTD+Style%3d%22Class693%22+Merge%3d%22False%22+RowSpan%3d%22%22+ColSpan%3d%22%22+Format%3d%22General%22+Width%3d%2224.75%22+Text%3d%22%22+Height%3d%2215.75%22+Align%3d%22Left%22+CellHasFormula%3d%22False%22+FontName%3d%22Calibri%22+WrapText%3d%22False%22+FontSize%3d%2211%22+X%3d%225%22+Y%3d%2250%22+%2f%3e%0d%0a++++++%3cTD+Style%3d%22Class693%22+Merge%3d%22False%22+RowSpan%3d%22%22+ColSpan%3d%22%22+Format%3d%22General%22+Width%3d%2224.75%22+Text%3d%22%22+Height%3d%2215.75%22+Align%3d%22Left%22+CellHasFormula%3d%22False%22+FontName%3d%22Calibri%22+WrapText%3d%22False%22+FontSize%3d%2211%22+X%3d%226%22+Y%3d%2250%22+%2f%3e%0d%0a++++++%3cTD+Style%3d%22Class693%22+Merge%3d%22False%22+RowSpan%3d%22%22+ColSpan%3d%22%22+Format%3d%22General%22+Width%3d%2224.75%22+Text%3d%22%22+Height%3d%2215.75%22+Align%3d%22Left%22+CellHasFormula%3d%22False%22+FontName%3d%22Calibri%22+WrapText%3d%22False%22+FontSize%3d%2211%22+X%3d%227%22+Y%3d%2250%22+%2f%3e%0d%0a++++++%3cTD+Style%3d%22Class693%22+Merge%3d%22False%22+RowSpan%3d%22%22+ColSpan%3d%22%22+Format%3d%22General%22+Width%3d%2224.75%22+Text%3d%22%22+Height%3d%2215.75%22+Align%3d%22Left%22+CellHasFormula%3d%22False%22+FontName%3d%22Calibri%22+WrapText%3d%22False%22+FontSize%3d%2211%22+X%3d%228%22+Y%3d%2250%22+%2f%3e%0d%0a++++++%3cTD+Style%3d%22Class693%22+Merge%3d%22False%22+RowSpan%3d%22%22+ColSpan%3d%22%22+Format%3d%22General%22+Width%3d%2224.75%22+Text%3d%22%22+Height%3d%2215.75%22+Align%3d%22Left%22+CellHasFormula%3d%22False%22+FontName%3d%22Calibri%22+WrapText%3d%22False%22+FontSize%3d%2211%22+X%3d%229%22+Y%3d%2250%22+%2f%3e%0d%0a++++++%3cTD+Style%3d%22Class693%22+Merge%3d%22False%22+RowSpan%3d%22%22+ColSpan%3d%22%22+Format%3d%22General%22+Width%3d%2224.75%22+Text%3d%22%22+Height%3d%2215.75%22+Align%3d%22Left%22+CellHasFormula%3d%22False%22+FontName%3d%22Calibri%22+WrapText%3d%22False%22+FontSize%3d%2211%22+X%3d%2210%22+Y%3d%2250%22+%2f%3e%0d%0a++++++%3cTD+Style%3d%22Class693%22+Merge%3d%22False%22+RowSpan%3d%22%22+ColSpan%3d%22%22+Format%3d%22General%22+Width%3d%2224.75%22+Text%3d%22%22+Height%3d%2215.75%22+Align%3d%22Left%22+CellHasFormula%3d%22False%22+FontName%3d%22Calibri%22+WrapText%3d%22False%22+FontSize%3d%2211%22+X%3d%2211%22+Y%3d%2250%22+%2f%3e%0d%0a++++++%3cTD+Style%3d%22Class693%22+Merge%3d%22False%22+RowSpan%3d%22%22+ColSpan%3d%22%22+Format%3d%22General%22+Width%3d%2224.75%22+Text%3d%22%22+Height%3d%2215.75%22+Align%3d%22Left%22+CellHasFormula%3d%22False%22+FontName%3d%22Calibri%22+WrapText%3d%22False%22+FontSize%3d%2211%22+X%3d%2212%22+Y%3d%2250%22+%2f%3e%0d%0a++++++%3cTD+Style%3d%22Class693%22+Merge%3d%22False%22+RowSpan%3d%22%22+ColSpan%3d%22%22+Format%3d%22General%22+Width%3d%2224.75%22+Text%3d%22%22+Height%3d%2215.75%22+Align%3d%22Left%22+CellHasFormula%3d%22False%22+FontName%3d%22Calibri%22+WrapText%3d%22False%22+FontSize%3d%2211%22+X%3d%2213%22+Y%3d%2250%22+%2f%3e%0d%0a++++++%3cTD+Style%3d%22Class693%22+Merge%3d%22False%22+RowSpan%3d%22%22+ColSpan%3d%22%22+Format%3d%22General%22+Width%3d%2224.75%22+Text%3d%22%22+Height%3d%2215.75%22+Align%3d%22Left%22+CellHasFormula%3d%22False%22+FontName%3d%22Calibri%22+WrapText%3d%22False%22+FontSize%3d%2211%22+X%3d%2214%22+Y%3d%2250%22+%2f%3e%0d%0a++++++%3cTD+Style%3d%22Class693%22+Merge%3d%22False%22+RowSpan%3d%22%22+ColSpan%3d%22%22+Format%3d%22General%22+Width%3d%2224.75%22+Text%3d%22%22+Height%3d%2215.75%22+Align%3d%22Left%22+CellHasFormula%3d%22False%22+FontName%3d%22Calibri%22+WrapText%3d%22False%22+FontSize%3d%2211%22+X%3d%2215%22+Y%3d%2250%22+%2f%3e%0d%0a++++++%3cTD+Style%3d%22Class693%22+Merge%3d%22False%22+RowSpan%3d%22%22+ColSpan%3d%22%22+Format%3d%22General%22+Width%3d%2224.75%22+Text%3d%22%22+Height%3d%2215.75%22+Align%3d%22Left%22+CellHasFormula%3d%22False%22+FontName%3d%22Calibri%22+WrapText%3d%22False%22+FontSize%3d%2211%22+X%3d%2216%22+Y%3d%2250%22+%2f%3e%0d%0a++++++%3cTD+Style%3d%22Class693%22+Merge%3d%22False%22+RowSpan%3d%22%22+ColSpan%3d%22%22+Format%3d%22General%22+Width%3d%2224.75%22+Text%3d%22%22+Height%3d%2215.75%22+Align%3d%22Left%22+CellHasFormula%3d%22False%22+FontName%3d%22Calibri%22+WrapText%3d%22False%22+FontSize%3d%2211%22+X%3d%2217%22+Y%3d%2250%22+%2f%3e%0d%0a++++++%3cTD+Style%3d%22Class693%22+Merge%3d%22False%22+RowSpan%3d%22%22+ColSpan%3d%22%22+Format%3d%22General%22+Width%3d%2224.75%22+Text%3d%22%22+Height%3d%2215.75%22+Align%3d%22Left%22+CellHasFormula%3d%22False%22+FontName%3d%22Calibri%22+WrapText%3d%22False%22+FontSize%3d%2211%22+X%3d%2218%22+Y%3d%2250%22+%2f%3e%0d%0a++++++%3cTD+Style%3d%22Class693%22+Merge%3d%22False%22+RowSpan%3d%22%22+ColSpan%3d%22%22+Format%3d%22General%22+Width%3d%2224.75%22+Text%3d%22%22+Height%3d%2215.75%22+Align%3d%22Left%22+CellHasFormula%3d%22False%22+FontName%3d%22Calibri%22+WrapText%3d%22False%22+FontSize%3d%2211%22+X%3d%2219%22+Y%3d%2250%22+%2f%3e%0d%0a++++++%3cTD+Style%3d%22Class693%22+Merge%3d%22False%22+RowSpan%3d%22%22+ColSpan%3d%22%22+Format%3d%22General%22+Width%3d%2224.75%22+Text%3d%22%22+Height%3d%2215.75%22+Align%3d%22Left%22+CellHasFormula%3d%22False%22+FontName%3d%22Calibri%22+WrapText%3d%22False%22+FontSize%3d%2211%22+X%3d%2220%22+Y%3d%2250%22+%2f%3e%0d%0a++++++%3cTD+Style%3d%22Class693%22+Merge%3d%22False%22+RowSpan%3d%22%22+ColSpan%3d%22%22+Format%3d%22General%22+Width%3d%2224.75%22+Text%3d%22%22+Height%3d%2215.75%22+Align%3d%22Left%22+CellHasFormula%3d%22False%22+FontName%3d%22Calibri%22+WrapText%3d%22False%22+FontSize%3d%2211%22+X%3d%2221%22+Y%3d%2250%22+%2f%3e%0d%0a++++++%3cTD+Style%3d%22Class693%22+Merge%3d%22False%22+RowSpan%3d%22%22+ColSpan%3d%22%22+Format%3d%22General%22+Width%3d%2224.75%22+Text%3d%22%22+Height%3d%2215.75%22+Align%3d%22Left%22+CellHasFormula%3d%22False%22+FontName%3d%22Calibri%22+WrapText%3d%22False%22+FontSize%3d%2211%22+X%3d%2222%22+Y%3d%2250%22+%2f%3e%0d%0a++++++%3cTD+Style%3d%22Class693%22+Merge%3d%22False%22+RowSpan%3d%22%22+ColSpan%3d%22%22+Format%3d%22General%22+Width%3d%2224.75%22+Text%3d%22%22+Height%3d%2215.75%22+Align%3d%22Left%22+CellHasFormula%3d%22False%22+FontName%3d%22Calibri%22+WrapText%3d%22False%22+FontSize%3d%2211%22+X%3d%2223%22+Y%3d%2250%22+%2f%3e%0d%0a++++++%3cTD+Style%3d%22Class693%22+Merge%3d%22False%22+RowSpan%3d%22%22+ColSpan%3d%22%22+Format%3d%22General%22+Width%3d%2224.75%22+Text%3d%22%22+Height%3d%2215.75%22+Align%3d%22Left%22+CellHasFormula%3d%22False%22+FontName%3d%22Calibri%22+WrapText%3d%22False%22+FontSize%3d%2211%22+X%3d%2224%22+Y%3d%2250%22+%2f%3e%0d%0a++++++%3cTD+Style%3d%22Class693%22+Merge%3d%22False%22+RowSpan%3d%22%22+ColSpan%3d%22%22+Format%3d%22General%22+Width%3d%2224.75%22+Text%3d%22%22+Height%3d%2215.75%22+Align%3d%22Left%22+CellHasFormula%3d%22False%22+FontName%3d%22Calibri%22+WrapText%3d%22False%22+FontSize%3d%2211%22+X%3d%2225%22+Y%3d%2250%22+%2f%3e%0d%0a++++++%3cTD+Style%3d%22Class693%22+Merge%3d%22False%22+RowSpan%3d%22%22+ColSpan%3d%22%22+Format%3d%22General%22+Width%3d%2224.75%22+Text%3d%22%22+Height%3d%2215.75%22+Align%3d%22Left%22+CellHasFormula%3d%22False%22+FontName%3d%22Calibri%22+WrapText%3d%22False%22+FontSize%3d%2211%22+X%3d%2226%22+Y%3d%2250%22+%2f%3e%0d%0a++++++%3cTD+Style%3d%22Class693%22+Merge%3d%22False%22+RowSpan%3d%22%22+ColSpan%3d%22%22+Format%3d%22General%22+Width%3d%2224.75%22+Text%3d%22%22+Height%3d%2215.75%22+Align%3d%22Left%22+CellHasFormula%3d%22False%22+FontName%3d%22Calibri%22+WrapText%3d%22False%22+FontSize%3d%2211%22+X%3d%2227%22+Y%3d%2250%22+%2f%3e%0d%0a++++++%3cTD+Style%3d%22Class693%22+Merge%3d%22False%22+RowSpan%3d%22%22+ColSpan%3d%22%22+Format%3d%22General%22+Width%3d%2224.75%22+Text%3d%22%22+Height%3d%2215.75%22+Align%3d%22Left%22+CellHasFormula%3d%22False%22+FontName%3d%22Calibri%22+WrapText%3d%22False%22+FontSize%3d%2211%22+X%3d%2228%22+Y%3d%2250%22+%2f%3e%0d%0a++++++%3cTD+Style%3d%22Class658%22+Merge%3d%22False%22+RowSpan%3d%22%22+ColSpan%3d%22%22+Format%3d%22General%22+Width%3d%2224.75%22+Text%3d%22%22+Height%3d%2215.75%22+Align%3d%22Left%22+CellHasFormula%3d%22False%22+FontName%3d%22Calibri%22+WrapText%3d%22False%22+FontSize%3d%2211%22+X%3d%2229%22+Y%3d%2250%22+%2f%3e%0d%0a++++%3c%2fTR%3e%0d%0a++%3c%2fTable%3e%0d%0a%3c%2fTables%3e
A3: %3c%3fxml+version%3d%221.0%22+encoding%3d%22utf-16%22%3f%3e%0d%0a%3cPageLayouts+xmlns%3axsi%3d%22http%3a%2f%2fwww.w3.org%2f2001%2fXMLSchema-instance%22+xmlns%3axsd%3d%22http%3a%2f%2fwww.w3.org%2f2001%2fXMLSchema%22+IsTabsVisible%3d%22true%22+InitialPageIndex%3d%220%22%3e%0d%0a++%3cPageLayout+Index%3d%220%22+IsPageHidingEnabled%3d%22false%22+Order%3d%220%22+FileName%3d%221.+BreakEven+Data%22+IsAjaxEnabled%3d%22false%22+Recipient%3d%22Enter+e-mail+address+here.%22+Location%3d%22Bottom%22+Alignment%3d%22Center%22+AutoResponseEmail%3d%22False%22+NotificationEmail%3d%22False%22+PageForwarding%3d%22False%22+PageForwardingCustomPage%3d%22False%22+PageForwardingIsExternalURL%3d%22False%22+PageForwardingExternalURL%3d%22None%22%3e%0d%0a++++%3cControls%3e%0d%0a++++++%3cPageControl+Enabled%3d%22true%22+Type%3d%22Calculate%22+Order%3d%220%22+CellLink%3d%22%3d'BreakEven+Data'!%24W%2426%22+Name%3d%22Calculate%22+%2f%3e%0d%0a++++++%3cPageControl+Enabled%3d%22false%22+Type%3d%22Reset%22+Order%3d%221%22+CellLink%3d%22DEFAULT%22+Name%3d%22Reset%22+%2f%3e%0d%0a++++++%3cPageControl+Enabled%3d%22false%22+Type%3d%22Send+Results%22+Order%3d%222%22+CellLink%3d%22DEFAULT%22+Name%3d%22Submit%22+%2f%3e%0d%0a++++++%3cPageControl+Enabled%3d%22false%22+Type%3d%22Save%22+Order%3d%223%22+CellLink%3d%22DEFAULT%22+Name%3d%22Save%22+%2f%3e%0d%0a++++++%3cPageControl+Enabled%3d%22false%22+Type%3d%22Back%22+Order%3d%225%22+CellLink%3d%22DEFAULT%22+Name%3d%22Back%22+%2f%3e%0d%0a++++++%3cPageControl+Enabled%3d%22true%22+Type%3d%22Next%22+Order%3d%224%22+CellLink%3d%22%3d'BreakEven+Data'!%24Y%2426%22+Name%3d%22Show+Report%22+%2f%3e%0d%0a++++%3c%2fControls%3e%0d%0a++%3c%2fPageLayout%3e%0d%0a++%3cPageLayout+Index%3d%221%22+IsPageHidingEnabled%3d%22false%22+Order%3d%221%22+FileName%3d%222.+BreakEven+Analysi%22+IsAjaxEnabled%3d%22false%22+Recipient%3d%22Enter+e-mail+address+here.%22+Location%3d%22Bottom%22+Alignment%3d%22Center%22+AutoResponseEmail%3d%22False%22+NotificationEmail%3d%22False%22+PageForwarding%3d%22False%22+PageForwardingCustomPage%3d%22False%22+PageForwardingIsExternalURL%3d%22False%22+PageForwardingExternalURL%3d%22None%22%3e%0d%0a++++%3cControls%3e%0d%0a++++++%3cPageControl+Enabled%3d%22false%22+Type%3d%22Calculate%22+Order%3d%220%22+CellLink%3d%22DEFAULT%22+Name%3d%22Calculate%22+%2f%3e%0d%0a++++++%3cPageControl+Enabled%3d%22false%22+Type%3d%22Reset%22+Order%3d%221%22+CellLink%3d%22DEFAULT%22+Name%3d%22Reset%22+%2f%3e%0d%0a++++++%3cPageControl+Enabled%3d%22false%22+Type%3d%22Send+Results%22+Order%3d%222%22+CellLink%3d%22DEFAULT%22+Name%3d%22Submit%22+%2f%3e%0d%0a++++++%3cPageControl+Enabled%3d%22false%22+Type%3d%22Save%22+Order%3d%223%22+CellLink%3d%22DEFAULT%22+Name%3d%22Save%22+%2f%3e%0d%0a++++++%3cPageControl+Enabled%3d%22true%22+Type%3d%22Back%22+Order%3d%225%22+CellLink%3d%22%3d'BreakEven+Analysis'!%24C%2414%22+Name%3d%22Back%22+%2f%3e%0d%0a++++++%3cPageControl+Enabled%3d%22false%22+Type%3d%22Next%22+Order%3d%224%22+CellLink%3d%22DEFAULT%22+Name%3d%22Next%22+%2f%3e%0d%0a++++%3c%2fControls%3e%0d%0a++%3c%2fPageLayout%3e%0d%0a++%3cApplicationName%3eBreak+Even+Analyzerx%3c%2fApplicationName%3e%0d%0a%3c%2fPageLayouts%3e
A5: tr-TR
A6: 2.0.0.0
A8: UEsFBgAAAAAAAAAAAAAAAAAAAAAAAA%3d%3d
A11: %3c%3fxml+version%3d%221.0%22+encoding%3d%22utf-16%22%3f%3e%0d%0a%3cSavingCells+xmlns%3axsi%3d%22http%3a%2f%2fwww.w3.org%2f2001%2fXMLSchema-instance%22+xmlns%3axsd%3d%22http%3a%2f%2fwww.w3.org%2f2001%2fXMLSchema%22+CellCount%3d%220%22+SavingCellPrefix%3d%22PSWSavingCell_%22+%2f%3e
